[Event "20th Delhi GM Open 2023"]
[Site "New Delhi"]
[Date "2023.03.28"]
[Round "8.7"]
[White "Aswath S"]
[Black "Lalit Babu M R"]
[Result "1/2-1/2"]
[ECO "C54"]
[WhiteElo "2214"]
[BlackElo "2544"]
[Annotator "TA"]
[PlyCount "154"]
[EventDate "2023.03.23"]
[EventType "swiss"]
[EventCountry "IND"]
[SourceTitle "playchess.com"]
[Source "ChessBase"]
[SourceQuality "1"]
[TimeControl "5400+30"]

{[%evp 17,154,4,15,12,50,0,0,0,3,-11,7,0,7,-12,29,9,47,0,0,0,0,6,59,22,51,0,5,0,4,6,12,12,16,12,84,85,177,168,160,172,117,108,101,80,148,153,163,147,156,81,114,75,64,60,74,18,19,19,60,60,60,46,39,45,45,46,60,60,60,60,60,60,61,61,61,61,61,60,60,60,75,75,75,75,75,75,75,52,52,52,52,52,52,52,52,0,52,52,52,52,52,23,23,18,32,17,18,18,23,23,32,0,18,18,32,32,32,32,32,17,32,0,32,8,8,8,8,8,8,8,8,8,8,8,8,8,8,8,8]} 1. e4 {[%emt 0:00:03]} e5 {[%emt 0:00:05]} 2. Nf3 {[%emt 0:00:09]} Nc6 {[%emt 0:00:08]} 3. Bc4 {[%emt 0:00:07]} Bc5 {[%emt 0:00:13]} 4. c3 {[%emt 0:00:10]} Nf6 {[%emt 0:00:07]} 5. d3 {[%emt 0:00:12]} a6 {[%emt 0:00:14]} 6. O-O {[%emt 0:00:26]} d6 {[%emt 0:03:19]} 7. b4 {[%emt 0:01:02]} Ba7 {[%emt 0:00:28]} 8. Nbd2 {[%emt 0:00:17]} O-O {[%emt 0:01:02]} 9. a4 {[%emt 0:00:18]} Ne7 {[%emt 0:05:22]} 10. Re1 {[%emt 0:03:03] C54: Giuoco Piano: 4 c3 Nf6, main lines with 5 d4 and 5 d3.} Ng4 {[%emt 0:19:08]} 11. Re2 {[%emt 0:02:02] [#]} (11. d4 $14) 11... Ng6 $146 {[%emt 0:04:08][%cal Ob7b5]} ({Predecessor:} 11... Kh8 12. h3 Nh6 13. d4 d5 14. exd5 exd4 15. cxd4 Nxd5 16. Qb3 Nb6 17. Ne4 Nxc4 18. Qxc4 {½-½ Ljepic,A (2036)-Lazic,M (2431) Novi Sad TS Mix 155th 2020 (4)}) 12. h3 {[%emt 0:05:10]} Nf6 {[%cal Bg4f6,Bf6h5,Bh5f4][%mdl 32]} 13. Nf1 {[%emt 0:01:00]} Nh5 {[%emt 0:11:07]} 14. Bg5 {[%emt 0:02:34]} Qe8 {[%emt 0:00:20]} 15. Be3 {[%emt 0:06:28]} Nhf4 {[%emt 0:02:08]} 16. Re1 {[%emt 0:01:10]} Be6 {[%emt 0:00:07]} (16... c6 {feels hotter.} 17. d4 d5 18. Bb3 dxe4 19. Nxe5 Nxe5 20. Bxf4 Nd3) 17. Bxa7 {[%emt 0:13:10] Threatens to win with Bxe6.} Bxc4 {[%emt 0:03:54]} 18. dxc4 {[%emt 0:00:13] aiming for Be3.} Rxa7 {[%emt 0:00:02]} 19. Ne3 {[%emt 0:00:51]} Qc6 {[%emt 0:02:35]} (19... a5 $11) 20. g3 {[%emt 0:03:15]} (20. h4 $5 {[%cal Rg2g3]}) 20... Ne6 {[%emt 0:03:06]} 21. Nd2 {[%emt 0:00:53]} (21. h4 $14 {should be considered.}) 21... a5 $11 {[%emt 0:07:25]} 22. h4 {[%emt 0:08:29]} axb4 {[%emt 0:00:46]} 23. cxb4 {[%emt 0:00:20]} Ne7 {[%emt 0:01:09]} 24. a5 {[%emt 0:16:38]} Nd4 {[%emt 0:05:06]} 25. b5 {[%emt 0:10:40]} Qc5 {[%emt 0:02:44]} (25... Qd7 $11) 26. Nc2 $16 {[%emt 0:01:39]} f5 {[%emt 0:07:38]} (26... Ne6 $16 {was called for.}) 27. Nxd4 $18 {[%emt 0:00:41]} Qxd4 {[%emt 0:00:04] [#]} 28. Qc2 $1 {[%emt 0:00:47] Nb3 would be deadly.} Raa8 {[%emt 0:02:14]} 29. Nb3 {[%emt 0:03:22]} Qa7 {[%emt 0:00:07]} 30. exf5 {[%emt 0:01:47]} Rxf5 {[%emt 0:02:13] [#]} ({Black should try} 30... Rae8) 31. b6 $1 $16 {[%emt 0:00:46][%mdl 512]} cxb6 {[%emt 0:02:02]} (31... Qb8 32. Nd4) 32. axb6 {[%emt 0:00:17][%mdl 64] Pin} Qb8 {[%emt 0:00:03]} 33. Qe4 {[%emt 0:01:02]} ({White should play} 33. Rxa8 Qxa8 34. Rd1) 33... Rf6 {[%emt 0:03:22]} 34. Rxa8 {[%emt 0:01:37]} Qxa8 {[%emt 0:00:03]} 35. Ra1 {[%emt 0:02:34] Prevents Qa2} ({Weaker is} 35. c5 Qa2 36. Qe3 Nd5 $17) 35... Qc8 {[%emt 0:00:22]} 36. Na5 {[%emt 0:01:03]} (36. Nd2 $16) 36... Qc5 $1 $11 {[%emt 0:00:42][%csl LRb6,LRf2]} 37. Qe3 {[%emt 0:06:45] Active counter play!} (37. Qxb7 $2 {too greedy.} Qxf2+ 38. Kh1 Qxg3 39. Qa8+ Kf7 $19) 37... Nc8 {[%emt 0:04:11]} 38. Qxc5 {[%emt 0:03:39]} dxc5 $14 {[%emt 0:00:05][%mdl 4096] Endgame KRN-KRN} 39. Re1 {[%emt 0:00:12]} Rxb6 {[%emt 0:07:05]} 40. Rxe5 {[%emt 0:00:09] Black must now prevent Re8+.} Nd6 {[%emt 0:00:34] Inhibits Re8+.} 41. Rxc5 {[%emt 0:00:57]} Rb1+ {[%emt 0:01:47]} 42. Kg2 {[%emt 0:00:06]} b6 {[%emt 0:00:02]} 43. Rd5 {[%emt 0:00:16]} bxa5 {[%emt 0:00:07]} 44. Rxd6 {[%emt 0:00:04] KR-KR} Rc1 {[%emt 0:00:04]} 45. Ra6 {[%emt 0:00:07]} Rxc4 {[%emt 0:00:06]} 46. Rxa5 {[%emt 0:00:04]} g6 {[%emt 0:01:44]} 47. Ra7 {[%emt 0:00:11]} h5 {[%emt 0:00:09]} 48. Kf3 {[%emt 0:00:19]} Rb4 {[%emt 0:00:05]} 49. Re7 {[%emt 0:00:42]} Kf8 {[%emt 0:00:36]} 50. Rd7 {[%emt 0:00:05]} Ra4 {[%emt 0:00:12]} 51. Ke3 {[%emt 0:00:08]} Rb4 {[%emt 0:01:02]} 52. f3 {[%emt 0:01:56]} Ra4 {[%emt 0:00:17]} 53. Kd3 {[%emt 0:01:14]} Rb4 {[%emt 0:00:15]} 54. Rc7 {[%emt 0:00:28]} Ra4 {[%emt 0:00:11]} 55. Ke3 {[%emt 0:03:11]} Rb4 {[%emt 0:00:04]} 56. Rd7 {[%emt 0:00:07]} Ra4 $1 {[%emt 0:00:08]} 57. Rd4 {[%emt 0:01:19]} Ra5 {[%emt 0:00:16]} 58. Kf4 {[%emt 0:00:47]} Kf7 {[%emt 0:00:14]} 59. g4 {[%emt 0:00:38]} hxg4 {[%emt 0:00:08]} 60. fxg4 {[%emt 0:00:05]} Rb5 {[%emt 0:02:55]} 61. Rd6 {[%emt 0:00:16]} Ra5 {[%emt 0:00:57]} 62. Rb6 {[%emt 0:00:47]} Rc5 {[%emt 0:00:10]} 63. Rb7+ {[%emt 0:00:25]} Kf6 {[%emt 0:00:12]} 64. Rb6+ {[%emt 0:01:28]} Kf7 {[%emt 0:00:04]} 65. Rb4 {[%emt 0:00:03]} Kf6 {[%emt 0:00:19]} 66. g5+ {[%emt 0:01:02]} Ke6 {[%emt 0:00:18]} 67. Rb6+ {[%emt 0:00:29]} Kf7 {[%emt 0:00:04]} 68. Rb7+ {[%emt 0:00:03]} Ke6 {[%emt 0:00:06]} 69. Rb6+ {[%emt 0:01:09]} Kf7 {[%emt 0:00:04]} 70. Ke4 {[%emt 0:00:34]} Rc4+ {[%emt 0:02:21] The position is equal.} 71. Ke5 {[%emt 0:00:13]} Rxh4 {[%emt 0:00:45]} 72. Rb7+ {[%emt 0:00:09]} Kg8 $1 {[%emt 0:00:04]} 73. Kf6 {[%emt 0:00:08]} Ra4 {[%emt 0:00:12]} 74. Rg7+ {[%emt 0:00:26]} Kh8 $1 {[%emt 0:00:05] And now ...Ra6+ would win.} 75. Re7 {[%emt 0:00:17]} (75. Kxg6 {is a self mate.} Ra6+ 76. Kf7 Ra7+ 77. Kf6 Rxg7 78. Kf5 Rf7+ 79. Ke6 Kg7 80. Kd5 Kg6 81. Ke5 Kxg5 82. Kd5 Kf4 83. Ke6 Rf5 84. Kd6 Re5 85. Kc6 Kf5 86. Kd7 Re6 87. Kd8 Kf6 88. Kd7 Kf7 89. Kc8 Re7 90. Kb8 Ke6 91. Ka8 Kd6 92. Kb8 Kc6 93. Ka8 Kb6 94. Kb8 Re8#) 75... Kg8 {[%emt 0:00:11]} 76. Kxg6 {[%emt 0:00:32][%cal Re7e8]} Ra6+ {[%emt 0:00:04]} 77. Kh5 {[%emt 0:00:12]} Rb6 {[%emt 0:00:03] Black escapes into a draw.   Weighted Error Value: White=0.14 (very precise) /Black=0.14 (very precise)} 1/2-1/2

[Event "20th Delhi GM Open 2023"]
[Site "New Delhi"]
[Date "2023.03.28"]
[Round "8.8"]
[White "Deshmukh, Anup"]
[Black "Aleksandrov, Aleksej"]
[Result "0-1"]
[ECO "E03"]
[WhiteElo "2129"]
[BlackElo "2484"]
[Annotator "TA"]
[PlyCount "70"]
[EventDate "2023.03.23"]
[EventType "swiss"]
[EventCountry "IND"]
[SourceTitle "playchess.com"]
[Source "ChessBase"]
[SourceQuality "1"]
[TimeControl "5400+30"]

{[%evp 18,70,18,0,0,-4,0,0,-5,-8,0,0,0,0,0,-4,77,66,86,86,104,-17,-27,-17,-17,-17,-17,-17,-23,-62,-78,-112,-110,-280,-293,-299,-304,-318,-304,-306,-310,-411,-372,-707,-637,-29972,-697,-1239,-1011,-1262,-816,-29990,-29991,-29991,-29992]} 1. c4 {[%emt 0:01:14]} e6 {[%emt 0:00:09]} 2. g3 {[%emt 0:01:48]} d5 {[%emt 0:00:32]} 3. Bg2 {[%emt 0:00:24]} Nf6 {[%emt 0:00:27]} 4. Nf3 {[%emt 0:00:10]} dxc4 {[%emt 0:00:06]} 5. Qa4+ {[%emt 0:00:21]} Nbd7 {[%emt 0:00:05]} 6. O-O {[%emt 0:00:41]} c5 {[%emt 0:03:45]} 7. Qxc4 {[%emt 0:00:44]} b6 {[%emt 0:00:08]} 8. d4 {[%emt 0:11:24]} Bb7 {[%emt 0:01:41]} 9. Nc3 {[%emt 0:00:33]} Rc8 $1 {[%emt 0:00:20] 9...Rc8 is better than 9...a6.} 10. Bg5 {[%emt 0:01:50]} a6 {[%emt 0:01:35] E03: Open Catalan: 5 Qa4+ Nbd7 6 Qxc4.} 11. a4 {[%emt 0:03:02][%cal Ba2a4,Ba4b5,Bb5a6,Ba6a7][%mdl 32]} Be7 {[%emt 0:02:06]} 12. Rad1 {[%emt 0:03:31]} O-O {[%emt 0:00:35] The position is equal.} 13. Bxf6 {[#]} Bxf6 $146 {[%emt 0:05:23]} ({Predecessor:} 13... Nxf6 14. dxc5 Rxc5 15. Rxd8 Rxc4 16. Rxf8+ Kxf8 17. Ne5 Rc7 18. Rd1 Bxg2 19. Kxg2 Ke8 {½-½ Kelires,A (2543)-Molina,R (2420) Sitges Sunway op 8th 2021 (8)}) 14. d5 {[%emt 0:10:38]} b5 {[%emt 0:00:19]} 15. axb5 {[%emt 0:04:11]} Nb6 {[%emt 0:00:07][%csl LRc4,LRd5]} 16. Qa2 {[%emt 0:05:13]} exd5 {[%emt 0:00:08]} (16... Nxd5 $11 17. bxa6 Ra8) 17. bxa6 $16 {[%emt 0:00:51]} Ra8 {[%emt 0:00:24]} 18. a7 {[%emt 0:08:04]} Qe7 {[%emt 0:00:19] [#]} 19. Nh4 {[%emt 0:04:40]} Bxh4 $11 {[%emt 0:04:12]} 20. gxh4 {[%emt 0:00:13]} d4 $36 {[%emt 0:02:46][%mdl 2048] ...Bxg2 would be deadly. Black has some pressure.} 21. Bxb7 {[%emt 0:00:27]} Qxb7 {[%emt 0:00:18]} 22. Nb5 {[%emt 0:00:33]} Qd7 {[%emt 0:07:10]} (22... Nc8 {simplifies} 23. Qa5 Nxa7 24. Nxa7 Qxa7 25. Qxa7 Rxa7 26. Rd2 Re8) 23. Qa6 {[%emt 0:03:13]} Nd5 {[%emt 0:00:13][%cal Bb6d5,Bd5f6,Bf6e4][%mdl 32]} 24. Kh1 {[%emt 0:06:27]} Rfe8 {[%emt 0:00:35] [#] Strongly threatening ...Re6.} 25. Nxd4 {[%emt 0:16:58] White does not recover from this.} Rxa7 $1 $19 {[%emt 0:04:23]} ({Stronger than} 25... cxd4 26. Rxd4 Qe7 27. Ra1 $15) 26. Qc4 {[%emt 0:04:39] Threatens to win with Nf3.} cxd4 {[%emt 0:01:09]} 27. Rxd4 {[%emt 0:01:07]} Qh3 {[%emt 0:00:08][%cal Rh3f1]} 28. Rg1 {[%emt 0:01:33]} Nf6 {[%emt 0:00:41]} 29. Qc5 {[%emt 0:09:03]} Ra6 {[%emt 0:00:13][%cal Of6e4,Ba7a6,Ba6e6,Be6g6][%mdl 32] And now ...Ne4! would win.} 30. b4 $2 {[%emt 0:01:07]} (30. Qc4 Rae6 31. Qd3 Qxd3 32. exd3) 30... Rxe2 {[%emt 0:08:47] ( -> ...Qf3+)} 31. Rf4 {[%emt 0:00:43] Dodges Qf3+} Qd7 {[%emt 0:02:53]} (31... Ne4 $142 32. Qd4 Ng3+ {[%mdl 64] Deflection} 33. Rxg3 Re1+ 34. Rg1 Rxg1+ {[%mdl 64] Remove Defender} 35. Kxg1 Rg6+ 36. Rg4 Rxg4+ 37. Qxg4 Qxg4+ 38. Kf1 Qxh4 39. h3 Qxh3+ 40. Ke2 h5 41. b5 h4 42. f4 Qb3 43. Kf2 h3 44. b6 h2 45. b7 Qxb7 46. Ke3 h1=Q 47. Kd2 Qb4+ 48. Ke2 Qhe4+ 49. Kf2 Qbe1#) 32. b5 {[%emt 0:00:28]} Rae6 {[%emt 0:00:53] Hoping for ...Qb7+.} 33. Rg3 {[%emt 0:00:39]} Ne4 {[%emt 0:02:30]} 34. Rxg7+ {[%emt 0:00:21]} Kxg7 {[%emt 0:00:04]} 35. Rg4+ {[%emt 0:00:22]} Rg6 {[%emt 0:00:02] Weighted Error Value: White=1.26/Black=0.67} 0-1

[Event "20th Delhi GM Open 2023"]
[Site "New Delhi"]
[Date "2023.03.28"]
[Round "8.9"]
[White "Fedorov, Alexei"]
[Black "Suyarov, Mukhammadzokhid"]
[Result "1-0"]
[ECO "C01"]
[WhiteElo "2477"]
[BlackElo "2281"]
[Annotator "TA"]
[PlyCount "85"]
[EventDate "2023.03.23"]
[EventType "swiss"]
[EventCountry "IND"]
[SourceTitle "playchess.com"]
[Source "ChessBase"]
[SourceQuality "1"]
[TimeControl "5400+30"]

{[%evp 9,85,-12,3,-4,0,0,0,-30,1,0,23,13,26,16,20,22,13,22,22,24,20,17,35,33,36,18,20,19,31,21,30,24,22,8,12,0,83,94,82,78,93,11,99,105,113,10,8,18,0,0,0,0,0,0,0,0,26,23,55,26,114,109,112,110,392,391,382,371,381,379,476,481,447,457,393,339,495,422]} 1. e4 {[%emt 0:00:04]} e6 {[%emt 0:00:12]} 2. d4 {[%emt 0:00:32]} d5 {[%emt 0:00:22]} 3. Nc3 {[%emt 0:00:09]} Nf6 {[%emt 0:00:08]} 4. exd5 {[%emt 0:00:21]} exd5 {[%emt 0:00:12]} 5. Bg5 {[%emt 0:00:08]} c6 {[%emt 0:03:44]} 6. Qd2 {[%emt 0:02:22] C01: French: Exchange Variation.} h6 {[%emt 0:03:26]} 7. Bf4 {[%emt 0:01:17]} Bb4 {[%emt 0:05:34] [#]} 8. f3 $146 {[%emt 0:01:49] Prevents Ne4. The position is equal.} ({Predecessor:} 8. Bd3 O-O 9. Nge2 c5 10. dxc5 Kh8 11. a3 Bxc5 12. O-O Nc6 13. Rad1 Be6 14. h3 a6 15. Ng3 b5 16. Bxh6 gxh6 17. Qxh6+ Kg8 18. Nh5 {1-0 Voicu Jagodzinsky,C (2247)-Stangl,A (2005) GER-ch Blitz (Women) 2021 (14)}) 8... Qe7+ {[%emt 0:09:14]} 9. Nge2 {[%emt 0:00:26]} Be6 {[%emt 0:01:07]} 10. a3 {[%emt 0:05:38]} Bd6 {[%emt 0:00:32]} 11. Bxd6 {[%emt 0:01:38]} Qxd6 {[%emt 0:00:02]} 12. Nf4 {[%emt 0:00:19]} Nbd7 {[%emt 0:01:05]} 13. Bd3 {[%emt 0:00:24]} g5 14. Nfe2 {[%emt 0:03:38]} O-O-O {[%emt 0:11:44]} 15. O-O-O {[%emt 0:00:33]} Rdg8 {[%emt 0:13:33]} 16. h4 {[%emt 0:05:44]} g4 {[%emt 0:07:33]} 17. Nf4 {[%emt 0:00:43] Prevents Nh5} (17. f4 $5 {[%cal Rf4f5]} Nb6 18. Ng3 $11) 17... gxf3 {[%emt 0:03:30]} 18. gxf3 {[%emt 0:00:06]} Ne8 {[%emt 0:02:22]} 19. Nce2 {[%emt 0:06:56]} Nf8 {[%emt 0:02:01]} 20. Rde1 {[%emt 0:07:29]} Ng7 {[%emt 0:01:23]} 21. Rhg1 {[%emt 0:14:12]} Qd8 {[%emt 0:03:42]} 22. Rg2 {[%emt 0:03:04] Strongly threatening Reg1.} Nd7 {[%emt 0:06:17]} (22... Ne8 $11) 23. Reg1 $16 {[%emt 0:03:54]} Qf8 {[%emt 0:00:12]} 24. Qa5 {[%emt 0:07:32]} a6 {[%emt 0:02:51] [#]} 25. Bxa6 {[%emt 0:03:23] White is much more active.} bxa6 {[%emt 0:01:43]} (25... Nf5 $11) 26. Qxa6+ {[%emt 0:00:04]} Kc7 {[%emt 0:04:59] [#]} 27. Qa5+ {[%emt 0:00:50]} (27. c4 $1 $16 {[%cal Rc4d5]}) 27... Kb7 $11 {[%emt 0:01:05]} ({Resist} 27... Kb8 28. Qb4+ Qxb4 29. axb4 $14) 28. Qb4+ {[%emt 0:00:27]} Qxb4 {[%emt 0:00:20]} 29. axb4 {[%emt 0:00:07]} Rh7 {[%emt 0:00:16]} 30. Nh5 {[%emt 0:02:33]} Nxh5 {[%emt 0:00:12]} 31. Rxg8 {[%emt 0:00:03]} Ndf6 {[%emt 0:00:54]} 32. Rf8 {[%emt 0:05:38]} Bd7 {[%emt 0:05:22]} 33. Kd2 $36 {[%emt 0:03:51][%mdl 2048] Black is under pressure.} Be8 {[%emt 0:01:12]} 34. Ng3 {[%emt 0:03:01]} Ng7 {[%emt 0:00:42] [#]} (34... Nxg3 $11 {remains equal.} 35. Rxg3 Kc7) 35. Re1 $1 $16 {[%emt 0:01:10] Hoping for Re7+.} Kc7 {[%emt 0:00:22]} 36. Re7+ {[%emt 0:01:30]} Kd8 $2 {[%emt 0:01:19][%mdl 8192] Loses the game.} (36... Kd6 $16 {was necessary.} 37. Rb7 Ke6) 37. Rexf7 $18 {[%emt 0:00:52]} Ne6 {[%emt 0:07:13]} 38. Rxf6 {[%emt 0:03:25]} Nxf8 {[%emt 0:00:11]} 39. Rxf8 {[%emt 0:00:03]} Rg7 {[%emt 0:00:05]} 40. Nf5 {[%emt 0:01:14][%csl LRg7,LRh6]} Rg2+ {[%emt 0:00:36]} 41. Kc3 {[%emt 0:01:11]} Kd7 {[%emt 0:00:20]} 42. Ne3 {[%emt 0:07:23] Prevents h5.} ({Don't play} 42. Nxh6 Ke7 $18) 42... Re2 {[%emt 0:00:30]} (42... Rh2 {was worth a try.} 43. Ng4 Rh3 44. Nf6+ Ke7 45. Rxe8+ Kf7) 43. Kd3 {[%emt 0:00:50] Weighted Error Value: White=0.13 (very precise) /Black=0.32} 1-0

[Event "20th Delhi GM Open 2023"]
[Site "New Delhi"]
[Date "2023.03.29"]
[Round "9.1"]
[White "Aravindh, Chithambaram VR."]
[Black "Murzin, Volodar"]
[Result "1-0"]
[ECO "B12"]
[WhiteElo "2607"]
[BlackElo "2554"]
[Annotator "TA"]
[PlyCount "79"]
[EventDate "2023.03.23"]
[EventType "swiss"]
[EventCountry "IND"]
[SourceTitle "playchess.com"]
[Source "ChessBase"]
[SourceQuality "1"]
[TimeControl "5400+30"]

{[%evp 9,79,-25,-26,-59,-65,-100,0,4,16,8,46,46,50,56,51,54,60,0,9,0,1,4,0,8,0,0,0,0,0,0,0,0,63,33,25,37,88,95,251,241,347,336,425,425,410,388,470,469,464,439,449,213,196,200,316,302,420,403,428,431,418,417,529,526,520,526,522,517,496,492,520,507]} 1. e4 {[%emt 0:00:07]} c6 {[%emt 0:00:53]} 2. d4 {[%emt 0:00:05]} d5 {[%emt 0:00:26]} 3. e5 {[%emt 0:00:09]} Bf5 {[%emt 0:00:15]} 4. h4 {[%emt 0:00:22]} h5 {[%emt 0:00:09]} 5. Bg5 {[%emt 0:00:09]} Qb6 {[%emt 0:07:50]} 6. Bd3 {[%emt 0:00:11] B12: Caro-Kann: Advance Variation.} Bxd3 {[%emt 0:01:04]} (6... Qxd4 $5 7. Nf3 Qxb2 $15) 7. Qxd3 {[%emt 0:00:06][%cal Oe5e6]} e6 {[%emt 0:00:04]} (7... Qxb2 $17 8. Qb3 Qxb3 9. axb3 e6) 8. Nd2 $11 {[%emt 0:00:09] Active counter play! The position is equal.} Ne7 {[%emt 0:15:10]} 9. Ne2 {[%emt 0:00:40]} Nf5 {[%emt 0:02:03]} 10. O-O {[%emt 0:00:25]} Nd7 {[%emt 0:13:10]} 11. c4 {[%emt 0:00:17]} Be7 {[%emt 0:01:57]} 12. Bxe7 {[%emt 0:00:28]} Nxe7 {[%emt 0:00:23] [#]} 13. b4 $5 $146 {[%emt 0:00:39][%mdl 8] An interesting novelty.} ({Predecessor:} 13. c5 Qd8 14. b4 Nf5 15. g3 g5 16. hxg5 Qxg5 17. Nf3 Qg7 18. Nh2 Nf8 19. b5 {1-0 Morozevich,A (2656)-Dreev,A (2670) Tula Starodubtsev Memorial 5th rapid 2019 (5)}) 13... Nf5 {[%emt 0:04:56]} 14. g3 {[%emt 0:06:19]} Qd8 {[%emt 0:11:59]} 15. cxd5 {[%emt 0:10:40]} cxd5 {[%emt 0:02:55]} 16. Nf4 {[%emt 0:00:08]} g6 {[%emt 0:08:07]} 17. Rfc1 {[%emt 0:21:50]} Rc8 {[%emt 0:02:08]} 18. Nf1 {[%emt 0:06:40]} Rc4 {[%emt 0:10:02]} 19. Rxc4 {[%emt 0:01:17]} dxc4 {[%emt 0:00:04]} 20. Qxc4 {[%emt 0:00:05]} O-O {[%emt 0:00:12]} (20... Nb6 $1 $11 21. Qb5+ Qd7 22. Qxd7+ Kxd7) 21. Ne3 {[%emt 0:04:22] Strongly threatening Nxf5.} Nb6 {[%emt 0:00:39][%csl LRc4,LRd4]} 22. Qf1 {[%emt 0:01:10]} Nxd4 {[%emt 0:04:57]} ({Better is} 22... Nxe3 $14 23. fxe3 Nd5) 23. Rd1 $16 {[%emt 0:00:22] Black must now prevent Kg2.} Qd7 $2 {[%emt 0:00:02] [#] Loses the game.} (23... Na4 $16 {keeps fighting.}) 24. Qg2 $1 $18 {[%emt 0:02:30]} Rd8 {[%emt 0:01:14]} (24... Nc4 $142) 25. Qe4 {[%emt 0:01:32]} Nc4 {[%emt 0:05:19] [#]} 26. Ned5 {[%emt 0:04:34]} (26. Nxc4 Nf3+ 27. Qxf3 Qxd1+ 28. Kg2 Qxf3+ 29. Kxf3 Rd4 $11) 26... exd5 {[%emt 0:01:24]} 27. Qxd4 {[%emt 0:00:05]} Nb6 {[%emt 0:02:59] [#]} 28. e6 $1 {[%emt 0:02:57][%mdl 512]} Qe7 {[%emt 0:00:03]} 29. Re1 {[%emt 0:02:39] Threatens to win with exf7+.} Rd6 {[%emt 0:00:58]} 30. Qe5 {[%emt 0:01:25]} (30. Qc5 $142 Kf8 31. a4) 30... Nc4 {[%emt 0:00:08]} 31. Qe2 $40 {[%emt 0:07:56][%mdl 128] Qd3 is the strong threat. White is out for blood.} b5 {[%emt 0:01:23]} (31... fxe6 {is a better defense.} 32. Nxg6 (32. Nxe6 b5 $14) 32... Qf7 33. Qxh5 Kg7) 32. Qd3 {[%emt 0:00:13]} fxe6 {[%emt 0:01:02]} 33. Qxg6+ {[%emt 0:03:10]} (33. Nxg6 Qh7 $11) 33... Qg7 {[%emt 0:00:01]} 34. Qe8+ {[%emt 0:00:07]} ({Not} 34. Qxh5 e5 35. Qe8+ Qf8 36. Rxe5 (36. Qxb5 a6 $16) 36... Nxe5 37. Qxe5 Qd8 $18) (34. Rxe6 Qxg6 35. Rxg6+ Rxg6 36. Nxg6 Na3 37. Ne7+ Kf7 38. Nxd5 Nc2 $18) 34... Qf8 {[%emt 0:00:03]} 35. Qxh5 {[%emt 0:00:31]} e5 {[%emt 0:01:57]} 36. Ng6 {[%emt 0:00:13][%cal Bf4g6,Bg6e5,Be5d3,Bd3e1,Be1d3][%mdl 32] White is clearly winning.} Qf6 {[%emt 0:00:19]} 37. Nxe5 {[%emt 0:00:09]} Re6 {[%emt 0:00:02][%cal Re6e5]} 38. Nd3 {[%emt 0:03:15]} Rxe1+ {[%emt 0:00:05]} 39. Nxe1 {[%emt 0:00:03]} Qe6 {[%emt 0:00:40]} 40. Nd3 {[%emt 0:00:33] Weighted Error Value: White=0.16 (very precise) /Black=0.36} 1-0